fUSD/lending_fUSD_20240103
["ID","MTS","AMOUNT","RATE_DAILY","PERIOD"]
[310038771,1704297044028,-1674.88379841,0.00032827,7]
[310038772,1704297044037,-1000.0,0.00032827,7]
[310038773,1704297044047,-948.69522473,0.00032827,3]
[310038774,1704297044058,-1000.0,0.00032827,7]
[310038775,1704297044068,-1563.23211696,0.00032827,7]
[310038776,1704297044078,-611.31528404,0.00032827,3]
[310038777,1704297044088,-1000.0,0.00032827,7]
[310038778,1704297044097,-531.50953528,0.00032827,3]
[310038779,1704297044108,-193.69373184,0.00032827,3]
[310038780,1704297044117,-465.62976464,0.00032827,3]
[310038781,1704297044127,-13939.1870702,0.00032853,2]
[310038782,1704297044137,-169115.889849,0.00032853,2]
[310038783,1704297044146,-204.30056541,0.00032866,7]
[310038784,1704297044155,-1207.93822802,0.00032872,2]
[310038785,1704297044165,-150.0,0.00032872,2]
[310038786,1704297044175,-197.63981367,0.00032874,4]
[310038787,1704297044185,-1428.15972802,0.00032874,4]
[310038788,1704297044194,-293.1739942,0.00032874,4]
[310038789,1704297044204,-288.00405165,0.00032874,4]
[310038790,1704297044214,-497.33620944,0.00032874,4]
[310038791,1704297044223,-316.48783956,0.00032874,4]
[310038792,1704297044233,-113940.45,0.00032875,2]
[310038793,1704297044244,-139260.55,0.00032875,2]
[310038794,1704297044253,-151.0,0.00032875,7]
[310038795,1704297044263,-151.0,0.00032875,7]
[310038796,1704297044273,-151.0,0.00032875,7]
[310038797,1704297044282,-151.0,0.00032875,7]
[310038798,1704297044292,-151.0,0.00032875,7]
[310038799,1704297044302,-151.0,0.00032875,7]
[310038800,1704297044312,-151.0,0.00032875,7]
[310038801,1704297044321,-151.0,0.00032875,7]
[310038802,1704297044330,-151.0,0.00032875,7]
[310038803,1704297044340,-151.0,0.00032875,7]
[310038804,1704297044349,-657.501237,0.00032875,7]
[310038805,1704297044359,-714.76,0.00032876,2]
[310038806,1704297044368,-715.49,0.00032876,2]
[310038807,1704297044378,-731.11,0.00032876,2]
[310038808,1704297044388,-734.51,0.00032876,2]
[310038809,1704297044397,-726.66,0.00032876,2]
[310038810,1704297044407,-151.0,0.00032876,7]
[310038811,1704297044417,-151.0,0.00032876,7]
[310038812,1704297044427,-151.0,0.00032876,7]
[310038813,1704297044437,-151.0,0.00032876,7]
[310038814,1704297044446,-151.0,0.00032876,7]
[310038815,1704297044455,-202.552462,0.00032876,7]
[310038816,1704297044465,-151.0,0.00032876,7]
[310038817,1704297044474,-203.333207,0.00032876,7]
[310038818,1704297044484,-181.197956,0.00032876,7]
[310038819,1704297044493,-151.0,0.00032876,7]
[310038820,1704297044503,-151.0,0.00032876,7]
[310038821,1704297044513,-151.0,0.00032876,7]
[310038822,1704297044523,-151.0,0.00032876,7]
[310038823,1704297044532,-151.0,0.00032876,7]
[310038824,1704297044542,-151.0,0.00032876,7]
[310038825,1704297044553,-151.0,0.00032876,7]
[310038826,1704297044563,-151.0,0.00032876,7]
[310038827,1704297044576,-151.0,0.00032876,7]
[310038828,1704297044585,-151.0,0.00032876,7]
[310038829,1704297044594,-151.0,0.00032876,7]
[310038830,1704297044603,-151.0,0.00032876,7]
[310038831,1704297044611,-151.0,0.00032876,7]
[310038832,1704297044621,-262.946737,0.00032876,7]
[310038833,1704297044630,-151.0,0.00032876,7]
[310038834,1704297044640,-151.0,0.00032876,7]
[310038835,1704297044649,-278.091473,0.00032876,7]
[310038836,1704297044659,-274.43993,0.00032876,7]
[310038837,1704297044668,-151.0,0.00032876,7]
[310038838,1704297044677,-151.0,0.00032876,7]
[310038839,1704297044687,-151.0,0.00032876,7]
[310038840,1704297044697,-180.841193,0.00032876,7]
[310038841,1704297044707,-657.501237,0.00032876,7]
[310038842,1704297044716,-657.501237,0.00032876,7]
[310038843,1704297044726,-657.501237,0.00032876,7]
[310038844,1704297044736,-657.501237,0.00032876,7]
[310038845,1704297044745,-657.501237,0.00032876,7]
[310038846,1704297044755,-657.501237,0.00032876,7]
[310038847,1704297044764,-657.501237,0.00032876,7]
[310038848,1704297044774,-657.501237,0.00032876,7]
[310038849,1704297044784,-657.501237,0.00032876,7]
[310038850,1704297044794,-657.501246,0.00032876,7]
[310038851,1704297044808,-500.0,0.00032876,2]
[310038852,1704297044817,-500.0,0.00032876,2]
[310038853,1704297044826,-500.0,0.00032876,2]
[310038854,1704297044836,-500.0,0.00032876,2]
[310038855,1704297044845,-499.51776655,0.00032876,7]
[310038856,1704297044855,-500.0,0.00032876,2]
[310038857,1704297044866,-500.0,0.00032876,2]
[310038858,1704297044876,-500.0,0.00032876,2]
[310038859,1704297044886,-500.0,0.00032876,2]
[310038860,1704297044896,-500.0,0.00032876,2]
[310038861,1704297044905,-500.0,0.00032876,2]
[310038862,1704297044915,-500.0,0.00032876,2]
[310038863,1704297044925,-500.0,0.00032876,2]
[310038864,1704297044934,-500.0,0.00032876,2]
[310038865,1704297044943,-500.0,0.00032876,2]
[310038866,1704297044954,-500.0,0.00032876,2]
[310038867,1704297044963,-500.0,0.00032876,2]
[310038868,1704297044973,-500.0,0.00032876,2]
[310038869,1704297044983,-500.0,0.00032876,2]
[310038870,1704297044992,-500.0,0.00032876,2]
[310038871,1704297045002,-500.0,0.00032876,2]
[310038872,1704297045011,-500.0,0.00032876,2]
[310038873,1704297045021,-500.0,0.00032876,2]
[310038874,1704297045030,-500.0,0.00032876,2]
[310038875,1704297045040,-500.0,0.00032876,2]
[310038876,1704297045050,-526.4592734,0.00032876,2]
[310038877,1704297045061,-528.11379191,0.00032876,2]
[310038878,1704297045071,-500.0,0.00032876,2]
[310038879,1704297045082,-500.0,0.00032876,2]
[310038880,1704297045093,-535.0625453,0.00032876,2]
[310038881,1704297045102,-500.0,0.00032876,2]
[310038882,1704297045112,-152.35717444,0.00032876,2]
[310038883,1704297045122,-500.0,0.00032876,2]
[310038884,1704297045132,-500.0,0.00032876,2]
[310038885,1704297045142,-500.0,0.00032876,2]
[310038886,1704297045151,-500.0,0.00032876,2]
[310038887,1704297045161,-504.2771185,0.00032876,2]
[310038888,1704297045171,-326.24252184,0.00032876,2]
[310038889,1704297045181,-521.29214695,0.00032876,2]
[310038890,1704297045191,-345.89304131,0.00032876,2]
[310038891,1704297045201,-521.95806051,0.00032876,2]
[310038892,1704297045210,-500.0,0.00032876,2]
[310038893,1704297045220,-500.0,0.00032876,2]
[310038894,1704297045229,-500.0,0.00032876,2]
[310038895,1704297045238,-500.0,0.00032876,2]
[310038896,1704297045249,-500.0,0.00032876,2]
[310038897,1704297045258,-500.0,0.00032876,2]
[310038898,1704297045267,-500.0,0.00032876,2]
[310038899,1704297045277,-202.67945938,0.00032876,2]
[310038900,1704297045286,-564.46121398,0.00032876,2]
[310038901,1704297045296,-166.87701949,0.00032876,2]
[310038902,1704297045308,-500.0,0.00032876,2]
[310038903,1704297045317,-500.0,0.00032876,2]
[310038904,1704297045327,-500.0,0.00032876,2]
[310038905,1704297045336,-500.0,0.00032876,2]
[310038906,1704297045345,-500.0,0.00032876,2]
[310038907,1704297045355,-500.0,0.00032876,2]
[310038908,1704297045364,-500.0,0.00032876,2]
[310038909,1704297045374,-500.0,0.00032876,2]
[310038910,1704297045384,-500.0,0.00032876,2]
[310038911,1704297045394,-500.0,0.00032876,2]
[310038912,1704297045403,-453.24074525,0.00032876,2]
[310038913,1704297045412,-521.10709979,0.00032876,2]
[310038914,1704297045421,-585.68345265,0.00032876,2]
[310038915,1704297045431,-500.0,0.00032876,2]
[310038916,1704297045441,-512.98694578,0.00032876,2]
[310038917,1704297045451,-515.64966747,0.00032876,2]
[310038918,1704297045461,-545.31927953,0.00032876,2]
[310038919,1704297045470,-527.99224318,0.00032876,2]
[310038920,1704297045479,-500.0,0.00032876,2]
[310038921,1704297045489,-512.04703945,0.00032876,2]
[310038922,1704297045498,-522.2980621,0.00032876,2]
[310038923,1704297045508,-500.0,0.00032876,2]
[310038924,1704297045517,-500.0,0.00032876,2]
[310038925,1704297045527,-500.0,0.00032876,2]
[310038926,1704297045536,-500.0,0.00032876,2]
[310038927,1704297045546,-500.0,0.00032876,2]
[310038928,1704297045557,-500.0,0.00032876,2]
[310038929,1704297045566,-500.0,0.00032876,2]
[310038930,1704297045576,-500.0,0.00032876,2]
[310038931,1704297045585,-500.0,0.00032876,2]
[310038932,1704297045594,-500.0,0.00032876,2]
[310038933,1704297045604,-500.0,0.00032876,2]
[310038934,1704297045613,-500.0,0.00032876,2]
[310038935,1704297045622,-500.0,0.00032876,2]
[310038936,1704297045632,-500.0,0.00032876,2]
[310038937,1704297045642,-500.0,0.00032876,2]
[310038938,1704297045651,-500.0,0.00032876,2]
[310038939,1704297045660,-500.0,0.00032876,2]
[310038940,1704297045670,-500.0,0.00032876,2]
[310038941,1704297045679,-500.0,0.00032876,2]
[310038942,1704297045688,-500.0,0.00032876,2]
[310038943,1704297045698,-500.0,0.00032876,2]
[310038944,1704297045708,-500.0,0.00032876,2]
[310038945,1704297045717,-500.0,0.00032876,2]
[310038947,1704297045727,-500.0,0.00032876,2]
[310038948,1704297045736,-500.0,0.00032876,2]
[310038949,1704297045745,-500.0,0.00032876,2]
[310038950,1704297045754,-500.0,0.00032876,2]
[310038951,1704297045764,-500.0,0.00032876,2]
[310038952,1704297045773,-500.0,0.00032876,2]
[310038953,1704297045783,-530.24789386,0.00032876,2]
[310038954,1704297045792,-500.0,0.00032876,2]
[310038956,1704297045802,-219.98563192,0.00032876,2]
[310038958,1704297045812,-403.29693389,0.00032876,2]
[310038960,1704297045821,-500.0,0.00032876,2]
[310038962,1704297045831,-500.0,0.00032876,2]
[310038964,1704297045841,-500.0,0.00032876,2]
[310038965,1704297045850,-500.0,0.00032876,2]
[310038966,1704297045860,-500.0,0.00032876,2]
[310038967,1704297045869,-500.0,0.00032876,2]
[310038968,1704297045879,-513.68535647,0.00032876,2]
[310038969,1704297045888,-623.86665838,0.00032876,2]
[310038970,1704297045898,-528.68933638,0.00032876,2]
[310038971,1704297045908,-496.81536232,0.00032876,2]
[310038972,1704297045917,-524.72832988,0.00032876,2]
[310038973,1704297045926,-218.61807376,0.00032876,2]
[310038974,1704297045935,-538.18407345,0.00032876,2]
[310038975,1704297045944,-508.00910758,0.00032876,2]
[310038976,1704297045954,-512.48287429,0.00032876,2]
[310038977,1704297045963,-500.0,0.00032876,2]
[310038979,1704297045973,-500.0,0.00032876,2]
[310038981,1704297045982,-506.52834024,0.00032876,2]
[310038982,1704297045991,-397.39894522,0.00032876,2]
[310038985,1704297046000,-547.22733204,0.00032876,2]
[310038986,1704297046009,-500.0,0.00032876,2]
[310038989,1704297046019,-500.0,0.00032876,2]
[310038991,1704297046028,-500.0,0.00032876,2]
[310038993,1704297046038,-500.0,0.00032876,2]
[310038995,1704297046047,-500.0,0.00032876,2]
[310038997,1704297046058,-500.0,0.00032876,2]
[310038999,1704297046068,-500.0,0.00032876,2]
[310039001,1704297046078,-500.0,0.00032876,2]
[310039002,1704297046087,-578.12421471,0.00032876,2]
[310039004,1704297046096,-500.0,0.00032876,2]
[310039006,1704297046105,-582.32759538,0.00032876,2]
[310039008,1704297046114,-510.04034339,0.00032876,2]
[310039010,1704297046124,-500.0,0.00032876,2]
[310039012,1704297046133,-500.0,0.00032876,2]
[310039014,1704297046142,-500.0,0.00032876,2]
[310039016,1704297046152,-500.0,0.00032876,2]
[310039018,1704297046161,-511.5343459,0.00032876,2]
[310039020,1704297046171,-500.0,0.00032876,2]
[310039022,1704297046182,-517.84860143,0.00032876,2]
[310039024,1704297046191,-500.0,0.00032876,2]
[310039026,1704297046201,-520.66143478,0.00032876,2]
[310039028,1704297046211,-299.5178,0.00032876,2]
[310039036,1704297046271,-500.0,0.00032876,2]
[310039037,1704297046281,-500.0,0.00032876,2]
[310039039,1704297046290,-516.98400891,0.00032876,2]
[310039041,1704297046300,-547.99432293,0.00032876,2]
[310039043,1704297046313,-500.0,0.00032876,2]
[310039046,1704297046323,-500.0,0.00032876,2]
[310039047,1704297046332,-500.0,0.00032876,2]
[310039049,1704297046342,-500.0,0.00032876,2]
[310039051,1704297046351,-501.12355633,0.00032876,2]
[310039053,1704297046360,-500.0,0.00032876,2]
[310039055,1704297046370,-500.0,0.00032876,2]
[310039057,1704297046380,-500.0,0.00032876,2]
[310039059,1704297046390,-500.0,0.00032876,2]
[310039061,1704297046399,-500.0,0.00032876,2]
[310039063,1704297046409,-500.0,0.00032876,2]
[310039065,1704297046418,-500.0,0.00032876,2]
[310039067,1704297046427,-500.0,0.00032876,2]
[310039070,1704297046436,-581.96132135,0.00032876,2]
[310039073,1704297046445,-500.0,0.00032876,2]
[310039076,1704297046454,-500.0,0.00032876,2]
[310039078,1704297046463,-500.0,0.00032876,2]
[310039080,1704297046472,-500.0,0.00032876,2]
[310039082,1704297046481,-500.0,0.00032876,2]
[310039084,1704297046490,-552.74653914,0.00032876,2]
[310039086,1704297046499,-500.0,0.00032876,2]
[310039088,1704297046508,-500.0,0.00032876,2]
[310039090,1704297046517,-500.0,0.00032876,2]
[310039092,1704297046526,-500.0,0.00032876,2]
[310039094,1704297046535,-500.0,0.00032876,2]
[310039096,1704297046544,-500.0,0.00032876,2]
[310039097,1704297046553,-581.29049003,0.00032876,2]
[310039098,1704297046564,-500.0,0.00032876,2]
[310039099,1704297046573,-500.0,0.00032876,2]
[310039100,1704297046582,-500.0,0.00032876,2]
[310039101,1704297046591,-551.98,0.00032876,2]
[310039102,1704297046600,-500.0,0.00032876,2]
[310039103,1704297046609,-500.0,0.00032876,2]
[310039104,1704297046619,-500.0,0.00032876,2]
[310039105,1704297046628,-500.0,0.00032876,2]
[310039106,1704297046638,-500.0,0.00032876,2]
[310039107,1704297046647,-527.45212829,0.00032876,2]
[310039108,1704297046656,-500.0,0.00032876,2]
[310039109,1704297046665,-500.0,0.00032876,2]
[310039110,1704297046675,-448.60848816,0.00032876,2]
[310039111,1704297046685,-500.0,0.00032876,2]
[310039112,1704297046694,-500.0,0.00032876,2]
[310039113,1704297046704,-500.0,0.00032876,2]
[310039114,1704297046717,-500.0,0.00032876,2]
[310039115,1704297046726,-500.0,0.00032876,2]
[310039116,1704297046736,-500.0,0.00032876,2]
[310039117,1704297046745,-500.0,0.00032876,2]
[310039118,1704297046754,-500.0,0.00032876,2]
[310039119,1704297046764,-570.69410616,0.00032876,2]
[310039120,1704297046774,-500.0,0.00032876,2]
[310039121,1704297046783,-500.0,0.00032876,2]
[310039122,1704297046792,-500.0,0.00032876,2]
[310039123,1704297046806,-500.0,0.00032876,2]
[310039124,1704297046815,-500.0,0.00032876,2]
[310039125,1704297046824,-500.0,0.00032876,2]
[310039126,1704297046833,-497.63375567,0.00032876,2]
[310039127,1704297046844,-608.72181237,0.00032876,2]
[310039128,1704297046854,-500.0,0.00032876,2]
[310039129,1704297046863,-500.0,0.00032876,2]
[310039130,1704297046872,-500.0,0.00032876,2]
[310039131,1704297046882,-511.06,0.00032876,2]
[310039132,1704297046891,-521.76917112,0.00032876,2]
[310039133,1704297046901,-500.0,0.00032876,2]
[310039134,1704297046911,-500.0,0.00032876,2]
[310039135,1704297046920,-317.5829499,0.00032876,2]
[310039136,1704297046930,-500.0,0.00032876,2]
[310039137,1704297046939,-500.0,0.00032876,2]
[310039138,1704297046948,-500.0,0.00032876,2]
[310039139,1704297046958,-517.97893124,0.00032876,2]
[310039140,1704297046968,-500.0,0.00032876,2]
[310039141,1704297046977,-500.0,0.00032876,2]
[310039142,1704297046987,-500.0,0.00032876,2]
[310039143,1704297046996,-588.94416865,0.00032876,2]
[310039144,1704297047006,-500.0,0.00032876,2]
[310039145,1704297047015,-500.0,0.00032876,2]
[310039146,1704297047025,-500.0,0.00032876,2]
[310039147,1704297047034,-582.21635981,0.00032876,2]
[310039148,1704297047044,-747.28,0.00032876,2]
[310039149,1704297047054,-747.28,0.00032876,2]
[310039150,1704297047064,-747.28,0.00032876,2]
[310039151,1704297047073,-747.28,0.00032876,2]
[310039152,1704297047085,-747.28,0.00032876,2]
[310039153,1704297047094,-747.28,0.00032876,2]
[310039154,1704297047103,-747.28,0.00032876,2]
[310039155,1704297047112,-747.28,0.00032876,2]
[310039156,1704297047121,-747.28,0.00032876,2]
[310039157,1704297047130,-747.28,0.00032876,2]
[310039158,1704297047140,-500.0,0.00032876,2]
[310039159,1704297047150,-500.0,0.00032876,2]
[310039160,1704297047160,-179.10811513,0.00032876,2]
[310039161,1704297047169,-747.28,0.00032876,2]
[310039162,1704297047178,-558.08104435,0.00032876,2]
[310039163,1704297047187,-747.28,0.00032876,2]
[310039164,1704297047195,-747.28,0.00032876,2]
[310039165,1704297047204,-747.28,0.00032876,2]
[310039166,1704297047213,-747.28,0.00032876,2]
[310039167,1704297047222,-747.28,0.00032876,2]
[310039168,1704297047230,-500.0,0.00032876,2]
[310039169,1704297047240,-747.28,0.00032876,2]
[310039170,1704297047250,-747.28,0.00032876,2]
[310039171,1704297047262,-500.0,0.00032876,2]
[310039172,1704297047271,-513.25173881,0.00032876,2]
[310039173,1704297047280,-747.28,0.00032876,2]
[310039174,1704297047289,-521.15951527,0.00032876,2]
[310039175,1704297047299,-747.28,0.00032876,2]
[310039176,1704297047310,-747.28,0.00032876,2]
[310039177,1704297047319,-747.28,0.00032876,2]
[310039178,1704297047329,-747.28,0.00032876,2]
[310039179,1704297047338,-747.39779997,0.00032876,2]
[310039180,1704297047358,-500.0,0.00032876,2]
[310039181,1704297047368,-544.29986814,0.00032876,20]
[310039182,1704297047378,-500.0,0.00032876,2]
[310039183,1704297047388,-500.0,0.00032876,2]
[310039184,1704297047398,-500.0,0.00032876,2]
[310039185,1704297047407,-505.38682207,0.00032876,2]
[310039186,1704297047416,-284.28322035,0.00032876,2]
[310039187,1704297047426,-500.0,0.00032876,2]
[310039188,1704297047435,-527.71485545,0.00032876,2]
[310039189,1704297047444,-500.0,0.00032876,2]
[310039190,1704297047453,-526.88839596,0.00032876,2]
[310039191,1704297047462,-500.0,0.00032876,2]
[310039192,1704297047472,-500.0,0.00032876,2]
[310039193,1704297047481,-500.0,0.00032876,2]
[310039194,1704297047490,-492.61550795,0.00032876,2]
[310039195,1704297047501,-304.60851101,0.00032876,2]
[310039196,1704297047511,-500.0,0.00032876,2]
[310039197,1704297047521,-500.0,0.00032876,2]
[310039198,1704297047530,-500.0,0.00032876,2]
[310039199,1704297047539,-500.0,0.00032876,2]
[310039200,1704297047548,-500.0,0.00032876,2]
[310039201,1704297047559,-500.0,0.00032876,2]
[310039202,1704297047568,-527.85639954,0.00032876,2]
[310039203,1704297047578,-500.0,0.00032876,2]
[310039204,1704297047587,-527.3675236,0.00032876,2]
[310039205,1704297047596,-500.0,0.00032876,2]
[310039206,1704297047606,-500.0,0.00032876,2]
[310039207,1704297047615,-500.0,0.00032876,2]
[310039208,1704297047624,-500.0,0.00032876,2]
[310039209,1704297047634,-500.0,0.00032876,2]
[310039210,1704297047643,-500.0,0.00032876,2]
[310039211,1704297047653,-500.0,0.00032876,2]
[310039212,1704297047662,-500.0,0.00032876,2]
[310039213,1704297047672,-500.0,0.00032876,2]
[310039214,1704297047681,-500.0,0.00032876,2]
[310039215,1704297047690,-500.0,0.00032876,2]
[310039216,1704297047700,-500.0,0.00032876,2]
[310039217,1704297047709,-500.0,0.00032876,2]
[310039218,1704297047719,-500.0,0.00032876,2]
[310039219,1704297047729,-500.0,0.00032876,2]
[310039220,1704297047738,-500.0,0.00032876,2]
[310039221,1704297047748,-500.0,0.00032876,2]
[310039222,1704297047757,-500.0,0.00032876,2]
[310039223,1704297047767,-500.0,0.00032876,2]
[310039224,1704297047776,-500.0,0.00032876,2]
[310039225,1704297047786,-500.0,0.00032876,2]
[310039226,1704297047795,-500.0,0.00032876,2]
[310039227,1704297047807,-520.06819447,0.00032876,2]
[310039228,1704297047816,-500.0,0.00032876,2]
[310039229,1704297047825,-528.67672811,0.00032876,2]
[310039230,1704297047835,-500.0,0.00032876,2]
[310039231,1704297047844,-340.4942313,0.00032876,2]
[310039232,1704297047853,-500.0,0.00032876,2]
[310039233,1704297047863,-500.0,0.00032876,2]
[310039234,1704297047872,-521.73322546,0.00032876,2]
[310039235,1704297047882,-500.0,0.00032876,2]
[310039236,1704297047892,-544.7706351,0.00032876,2]
[310039237,1704297047902,-500.0,0.00032876,2]
[310039238,1704297047911,-533.14185637,0.00032876,2]
[310039239,1704297047920,-523.82871614,0.00032876,2]
[310039240,1704297047930,-561.59566686,0.00032876,2]
[310039241,1704297047939,-530.31548955,0.00032876,2]
[310039242,1704297047948,-338.95721144,0.00032876,2]
[310039243,1704297047957,-519.29230971,0.00032876,2]
[310039244,1704297047966,-500.0,0.00032876,2]
[310039245,1704297047976,-500.0,0.00032876,2]
[310039246,1704297047985,-500.0,0.00032876,2]
[310039247,1704297047994,-500.0,0.00032876,2]
[310039248,1704297048004,-500.0,0.00032876,2]
[310039249,1704297048014,-506.37688279,0.00032876,2]
[310039250,1704297048023,-500.0,0.00032876,2]
[310039251,1704297048033,-500.0,0.00032876,2]
[310039252,1704297048042,-500.0,0.00032876,2]
[310039253,1704297048052,-500.0,0.00032876,2]
[310039254,1704297048065,-623.75588699,0.00032876,2]
[310039255,1704297048075,-500.0,0.00032876,2]
[310039256,1704297048086,-360.54,0.00032876,2]
[310039257,1704297048096,-500.0,0.00032876,2]
[310039258,1704297048105,-225.40374426,0.00032876,2]
[310039259,1704297048115,-500.0,0.00032876,2]
[310039260,1704297048125,-500.0,0.00032876,2]
[310039261,1704297048135,-500.0,0.00032876,2]
[310039262,1704297048145,-500.0,0.00032876,2]
[310039263,1704297048155,-500.0,0.00032876,2]
[310039264,1704297048165,-500.0,0.00032876,2]
[310039265,1704297048174,-500.0,0.00032876,2]
[310039266,1704297048184,-500.0,0.00032876,2]
[310039267,1704297048194,-500.0,0.00032876,2]
[310039268,1704297048204,-500.0,0.00032876,2]
[310039269,1704297048214,-161.70723694,0.00032876,2]
[310039270,1704297048225,-500.0,0.00032876,2]
[310039271,1704297048234,-598.18874219,0.00032876,2]
[310039272,1704297048244,-551.3005629,0.00032876,2]
[310039273,1704297048253,-500.0,0.00032876,2]
[310039274,1704297048262,-300.93826299,0.00032876,2]
[310039275,1704297048272,-500.0,0.00032876,2]
[310039276,1704297048281,-500.0,0.00032876,2]
[310039277,1704297048290,-532.87555325,0.00032876,2]
[310039278,1704297048299,-500.0,0.00032876,2]
[310039279,1704297048311,-500.0,0.00032876,2]
[310039280,1704297048321,-500.0,0.00032876,2]
[310039281,1704297048330,-500.0,0.00032876,2]
[310039282,1704297048339,-500.0,0.00032876,2]
[310039283,1704297048348,-489.19,0.00032876,2]
[310039284,1704297048357,-250.0,0.00032876,2]
[310039285,1704297048367,-500.0,0.00032876,2]
[310039286,1704297048378,-500.0,0.00032876,2]
[310039287,1704297048389,-500.0,0.00032876,2]
[310039288,1704297048398,-500.0,0.00032876,2]
[310039289,1704297048408,-500.0,0.00032876,2]
[310039290,1704297048418,-245.43587081,0.00032876,2]
[310039291,1704297048427,-525.92362383,0.00032876,2]
[310039292,1704297048436,-500.0,0.00032876,2]
[310039293,1704297048446,-500.0,0.00032876,2]
[310039294,1704297048455,-565.65842628,0.00032876,2]
[310039295,1704297048464,-519.64346954,0.00032876,2]
[310039296,1704297048473,-500.0,0.00032876,2]
[310039297,1704297048482,-500.0,0.00032876,2]
[310039298,1704297048491,-500.0,0.00032876,2]
[310039299,1704297048500,-500.0,0.00032876,2]
[310039300,1704297048509,-500.0,0.00032876,2]
[310039301,1704297048518,-541.63248402,0.00032876,2]
[310039302,1704297048528,-516.4070571,0.00032876,2]
[310039303,1704297048537,-500.0,0.00032876,2]
[310039304,1704297048547,-500.0,0.00032876,2]
[310039305,1704297048557,-500.0,0.00032876,2]
[310039306,1704297048567,-530.85434013,0.00032876,2]
[310039307,1704297048577,-500.0,0.00032876,2]
[310039308,1704297048587,-531.76707556,0.00032876,2]
[310039309,1704297048597,-500.0,0.00032876,2]
[310039310,1704297048607,-500.0,0.00032876,2]
[310039311,1704297048617,-500.0,0.00032876,2]
[310039312,1704297048627,-500.0,0.00032876,2]
[310039313,1704297048637,-502.83361124,0.00032876,2]
[310039314,1704297048647,-500.0,0.00032876,2]
[310039315,1704297048657,-500.0,0.00032876,2]
[310039316,1704297048666,-500.0,0.00032876,2]
[310039317,1704297048677,-500.0,0.00032876,2]
[310039318,1704297048686,-500.0,0.00032876,2]
[310039319,1704297048696,-500.0,0.00032876,2]
[310039320,1704297048706,-500.0,0.00032876,2]
[310039321,1704297048715,-500.0,0.00032876,2]
[310039322,1704297048726,-500.0,0.00032876,2]
[310039323,1704297048736,-500.0,0.00032876,2]
[310039324,1704297048746,-553.46407257,0.00032876,2]
[310039325,1704297048756,-503.89470344,0.00032876,2]
[310039326,1704297048766,-500.0,0.00032876,2]
[310039327,1704297048776,-500.0,0.00032876,2]
[310039328,1704297048785,-390.19039358,0.00032876,2]
[310039329,1704297048797,-500.0,0.00032876,2]
[310039330,1704297048808,-500.0,0.00032876,2]
[310039331,1704297048819,-500.0,0.00032876,2]
[310039332,1704297048830,-500.0,0.00032876,2]
[310039333,1704297048839,-500.0,0.00032876,2]
[310039334,1704297048850,-500.0,0.00032876,2]
[310039335,1704297048860,-500.0,0.00032876,2]
[310039336,1704297048870,-500.0,0.00032876,2]
[310039337,1704297048880,-500.86721661,0.00032876,2]
[310039338,1704297048889,-500.0,0.00032876,2]
[310039339,1704297048899,-500.0,0.00032876,2]